[Event "Reykjavik Open 2022"]
[Site "Reykjavik"]
[Date "2022.04.07"]
[Round "3.8"]
[White "Sadhwani, Raunak"]
[Black "Grieve, Harry"]
[Result "1-0"]
[ECO "A84"]
[WhiteElo "2616"]
[BlackElo "2384"]
[Annotator "TA"]
[PlyCount "101"]
[EventDate "2022.04.06"]
[EventCountry "ISL"]
[SourceTitle "playchess.com"]
[Source "ChessBase"]
[SourceQuality "1"]
[TimeControl "40/5400+30:1800+30"]

{[%evp 64,101,343,348,335,338,318,208,213,204,185,175,240,240,234,230,410,252,253,259,392,391,384,377,384,289,376,357,559,545,29975,29976,29975,29976,29976,29977,29977,29978,29973,29971]} 1. d4 {[%emt 0:00:01]} d5 {[%emt 0:00:10]} 2. Nf3 {[%emt 0:00:10]} e6 {[%emt 0:00:07]} 3. c4 {[%emt 0:00:03]} c6 {[%emt 0:00:29]} 4. e3 {[%emt 0:00:18]} Bd6 {[%emt 0:00:52]} 5. Be2 {[%emt 0:00:17]} f5 {[%emt 0:00:56]} 6. O-O {[%emt 0:00:19]} Nf6 {[%emt 0:00:05]} 7. b3 {[%emt 0:00:04]} Qe7 {[%emt 0:00:26]} 8. a4 {[%emt 0:01:10]} a5 {[%emt 0:00:29]} 9. Ba3 {[%emt 0:00:34]} O-O {[%emt 0:01:58]} 10. Bxd6 {[%emt 0:01:44]} Qxd6 {[%emt 0:00:02]} 11. Nbd2 {[%emt 0:04:39]} Nbd7 {[%emt 0:03:39]} 12. Qc2 {[%emt 0:03:00]} Ne4 {[%emt 0:04:28]} 13. Rfc1 {[%emt 0:08:20]} Kh8 {[%emt 0:07:00]} 14. Ne1 {[%emt 0:05:16]} g5 {[%emt 0:14:30]} 15. f3 {[%emt 0:00:55]} Nxd2 {[%emt 0:02:03]} 16. Qxd2 {[%emt 0:01:05]} f4 {[%emt 0:04:23]} 17. Nd3 {[%emt 0:05:08]} Rf6 {[%emt 0:06:39]} 18. Bf1 {[%emt 0:09:40]} Nf8 {[%emt 0:00:47]} 19. Re1 {[%emt 0:01:07]} Ng6 {[%emt 0:01:27]} 20. Qc3 {[%emt 0:05:14]} fxe3 {[%emt 0:07:29]} 21. Rxe3 {[%emt 0:00:09]} Bd7 {[%emt 0:00:13]} 22. Rae1 {[%emt 0:01:57]} Qc7 {[%emt 0:12:32]} 23. Nc5 {[%emt 0:02:14]} Raf8 {[%emt 0:11:50]} 24. g3 {[%emt 0:02:22]} h5 {[%emt 0:07:50]} 25. Bh3 {[%emt 0:03:07]} b6 {[%emt 0:03:00]} 26. Nxd7 {[%emt 0:01:57]} Qxd7 {[%emt 0:00:02]} 27. Rxe6 {[%emt 0:02:54]} g4 {[%emt 0:04:52]} 28. Rxf6 {[%emt 0:00:34]} Rxf6 {[%emt 0:00:02]} 29. fxg4 {[%emt 0:00:08]} hxg4 {[%emt 0:00:11]} 30. Bg2 {[%emt 0:00:08]} dxc4 {[%emt 0:01:54]} 31. bxc4 {[%emt 0:01:26]} Kh7 {[%emt 0:01:32]} 32. d5 {[%emt 0:07:14]} Qg7 {[%emt 0:00:18]} 33. Qc2 {[%emt 0:00:10]} cxd5 {[%emt 0:00:32]} 34. Bxd5 {[%emt 0:00:05]} (34. cxd5 Qd7 35. Qd1 Rd6) 34... Qf8 {[%emt 0:01:25]} 35. Qe2 {[%emt 0:06:16]} Qb4 {[%emt 0:00:43]} 36. Rd1 {[%emt 0:01:38]} (36. Qe8 Kg7 37. Kg2 Qd2+ 38. Qe2 Qc3) 36... Qxa4 {[%emt 0:00:52]} 37. Qxg4 {[%emt 0:00:08]} Kh6 {[%emt 0:02:12]} (37... Qe8 {was worth a try.} 38. h4 Qe3+ 39. Kh1 Kh6) 38. Qd4 $18 {[%emt 0:04:06]} Qc2 {[%emt 0:01:00]} 39. h4 {[%emt 0:02:30]} (39. Qxf6 Qxd1+ 40. Qf1 (40. Kg2 Qe2+ 41. Kh3 Qh5+ 42. Kg2 Qe2+ 43. Kh1 Qd1+ 44. Kg2 Qe2+ $11) 40... Qxf1+ 41. Kxf1 a4 $11) 39... Ne5 $2 {[%emt 0:00:28]} (39... Qe2 40. Qxf6 Qxd1+ 41. Kh2 Qe2+ 42. Kh3 a4 43. Qg5+ (43. Qxb6 a3 $11) 43... Kh7) 40. Re1 {[%emt 0:00:00]} ({Not} 40. Qxe5 Qxd1+ 41. Kh2 Qc2+ 42. Bg2 Qf5 $15) 40... Ng4 {[%emt 0:00:00]} 41. Bg2 {[%emt 0:02:45]} Qf2+ {[%emt 0:09:46]} (41... Kh5 $142 42. Qd5+ Rf5) 42. Qxf2 $18 {[%emt 0:00:43]} Nxf2 {[%emt 0:00:02]} 43. Re7 {[%emt 0:01:07]} Kh5 {[%emt 0:07:04]} 44. Rg7 {[%emt 0:03:15]} Nd1 {[%emt 0:03:51]} 45. Be4 {[%emt 0:07:24]} Nc3 {[%emt 0:10:42]} (45... a4 $142 46. Bc2 Ne3 47. Bxa4 Nxc4) 46. Bd3 $18 {[%emt 0:03:02]} Rd6 {[%emt 0:00:32]} 47. Bf5 {[%emt 0:00:20]} a4 {[%emt 0:02:02]} 48. Rh7+ {[%emt 0:00:08]} Rh6 {[%emt 0:00:02]} 49. g4+ {[%emt 0:00:05]} Kxh4 {[%emt 0:00:03]} 50. Rxh6+ {[%emt 0:00:05]} Kg3 {[%emt 0:00:08]} 51. Rxb6 {[%emt 0:00:05]} 1-0

[Event "Reykjavik Open 2022"]
[Site "Reykjavik"]
[Date "2022.04.07"]
[Round "3.9"]
[White "Kolbus, Dietmar"]
[Black "Praggnanandhaa R"]
[Result "0-1"]
[ECO "A46"]
[WhiteElo "2305"]
[BlackElo "2612"]
[Annotator "TA"]
[PlyCount "94"]
[EventDate "2022.04.06"]
[EventCountry "ISL"]
[SourceTitle "playchess.com"]
[Source "ChessBase"]
[SourceQuality "1"]
[TimeControl "40/5400+30:1800+30"]

{[%evp 52,94,-98,-123,-124,-129,-117,-109,-106,-124,-129,-109,-114,-118,-124,-108,-115,-154,-155,-155,-158,-155,-158,-274,-270,-274,-274,-385,-276,-270,-262,-373,-355,-512,-521,-649,-495,-475,-307,-642,-636,-598,-441,-593,-591]} 1. d4 {[%emt 0:00:03]} Nf6 {[%emt 0:00:45]} 2. Nf3 {[%emt 0:00:59]} e6 {[%emt 0:01:54]} 3. g3 {[%emt 0:01:24]} b5 {[%emt 0:01:32]} 4. Bg2 {[%emt 0:00:08]} Bb7 {[%emt 0:00:03]} 5. O-O {[%emt 0:00:16]} Be7 {[%emt 0:02:23]} 6. Bg5 {[%emt 0:00:55]} d5 {[%emt 0:04:17]} 7. Bxf6 {[%emt 0:01:01]} Bxf6 {[%emt 0:00:09]} 8. c3 {[%emt 0:00:06]} Nd7 {[%emt 0:05:29]} 9. Nbd2 {[%emt 0:00:10]} c5 {[%emt 0:04:44]} 10. dxc5 {[%emt 0:21:34]} Nxc5 {[%emt 0:00:42]} 11. Nb3 {[%emt 0:00:24]} Na4 {[%emt 0:02:21]} 12. Qd2 {[%emt 0:00:44]} O-O {[%emt 0:00:45]} 13. Nfd4 {[%emt 0:12:29]} Qb6 {[%emt 0:01:40]} 14. e3 {[%emt 0:06:18]} Rfd8 {[%emt 0:01:56]} 15. f4 {[%emt 0:04:19]} Be7 {[%emt 0:09:56]} 16. a3 {[%emt 0:07:54]} a6 {[%emt 0:04:24]} 17. Rfe1 {[%emt 0:02:53]} Rac8 {[%emt 0:02:03]} 18. Qf2 {[%emt 0:00:50]} Qc7 {[%emt 0:03:32]} 19. Re2 {[%emt 0:04:24]} Nb6 {[%emt 0:04:02]} 20. Nc1 {[%emt 0:04:58]} Nc4 {[%emt 0:01:37]} 21. Nd3 {[%emt 0:00:12]} Nd6 {[%emt 0:03:52]} 22. Qe1 {[%emt 0:01:02]} a5 {[%emt 0:02:17]} 23. Qd1 {[%emt 0:03:03]} Ba6 {[%emt 0:05:51]} 24. Bf1 {[%emt 0:01:24]} Qb6 {[%emt 0:03:13]} 25. Rc2 {[%emt 0:05:56]} Re8 {[%emt 0:04:35]} 26. Kh1 {[%emt 0:00:49]} Bf8 {[%emt 0:01:35]} 27. Rac1 {[%emt 0:04:13]} Rcd8 {[%emt 0:01:37]} 28. Bg2 {[%emt 0:01:58]} g6 {[%emt 0:04:06]} 29. Ra1 {[%emt 0:02:13]} Bg7 {[%emt 0:00:58]} 30. Qe2 {[%emt 0:02:04]} b4 {[%emt 0:04:49]} 31. axb4 {[%emt 0:00:09]} axb4 {[%emt 0:00:09]} 32. Qd1 {[%emt 0:03:14]} Bxd3 {[%emt 0:06:23]} 33. Qxd3 {[%emt 0:00:03]} Ra8 {[%emt 0:00:11]} 34. Rcc1 {[%emt 0:01:20]} bxc3 {[%emt 0:03:43]} 35. bxc3 {[%emt 0:00:07]} Rxa1 {[%emt 0:00:20]} 36. Rxa1 {[%emt 0:00:02]} Rb8 {[%emt 0:00:23]} 37. Bf3 {[%emt 0:04:55]} (37. Ra6 $17 {keeps fighting.} Qb1+ 38. Bf1) 37... Qb2 $19 {[%emt 0:00:46]} 38. Rd1 {[%emt 0:01:14]} Bxd4 {[%emt 0:03:00]} 39. cxd4 {[%emt 0:02:06]} (39. exd4 $142 Nc4 40. Bg2) 39... Rb3 {[%emt 0:00:21]} 40. Qd2 {[%emt 0:00:00]} Qa3 {[%emt 0:00:00]} 41. Qf2 {[%emt 0:02:30]} (41. Qc1 $142) 41... Rxe3 {[%emt 0:03:53]} 42. Kg2 {[%emt 0:00:32]} (42. Bg2 $142) 42... Rb3 $19 {[%emt 0:03:41]} 43. Rd2 {[%emt 0:00:59]} Nc4 {[%emt 0:00:28]} 44. Re2 {[%emt 0:00:26]} Qc1 {[%emt 0:01:44]} 45. Kh3 $2 {[%emt 0:00:37]} (45. Qe1 Qa3 46. Bg4) 45... Qc3 $19 {[%emt 0:01:08]} 46. Bg2 {[%emt 0:00:55]} Qd3 {[%emt 0:00:52]} 47. Bf1 {[%emt 0:01:14]} Ne3 {[%emt 0:00:21]} 0-1

[Event "Reykjavik Open 2022"]
[Site "Reykjavik"]
[Date "2022.04.07"]
[Round "3.10"]
[White "Andersen, Mads"]
[Black "Song, Julien"]
[Result "1-0"]
[ECO "E05"]
[WhiteElo "2570"]
[BlackElo "2352"]
[Annotator "TA"]
[PlyCount "75"]
[EventDate "2022.04.06"]
[EventCountry "ISL"]
[SourceTitle "playchess.com"]
[Source "ChessBase"]
[SourceQuality "1"]
[TimeControl "40/5400+30:1800+30"]

{[%evp 45,75,104,131,120,277,118,124,144,191,186,291,257,242,245,245,97,92,44,44,42,593,580,952,952,1014,1007,1009,977,932,895,883,831]} 1. Nf3 {[%emt 0:00:08]} Nf6 {[%emt 0:00:25]} 2. g3 {[%emt 0:00:28]} d5 {[%emt 0:00:45]} 3. Bg2 {[%emt 0:00:13]} e6 {[%emt 0:00:44]} 4. O-O {[%emt 0:00:23]} Be7 {[%emt 0:00:23]} 5. c4 {[%emt 0:00:15]} O-O {[%emt 0:00:29]} 6. d4 {[%emt 0:00:17]} dxc4 {[%emt 0:00:38]} 7. Ne5 {[%emt 0:00:24]} Nc6 {[%emt 0:00:51]} 8. Nxc6 {[%emt 0:00:23]} bxc6 {[%emt 0:00:06]} 9. Na3 {[%emt 0:00:07]} Bxa3 {[%emt 0:01:04]} 10. bxa3 {[%emt 0:00:02]} Ba6 {[%emt 0:00:50]} 11. Bxc6 {[%emt 0:00:39]} Rb8 {[%emt 0:03:57]} 12. Re1 {[%emt 0:00:16]} Qd6 {[%emt 0:21:28]} 13. Qa4 {[%emt 0:16:56]} Rb6 {[%emt 0:03:28]} 14. Bf3 {[%emt 0:32:46]} Nd5 {[%emt 0:08:02]} 15. Qc2 {[%emt 0:03:23]} Rbb8 {[%emt 0:12:34]} 16. e4 {[%emt 0:05:22]} Nb6 {[%emt 0:01:03]} 17. Rd1 {[%emt 0:03:32]} Bb5 {[%emt 0:04:36]} 18. Qc3 {[%emt 0:01:54]} Na4 {[%emt 0:01:55]} 19. Qc2 {[%emt 0:03:58]} c3 {[%emt 0:17:48]} 20. Rb1 {[%emt 0:02:04]} Bc6 {[%emt 0:03:24]} 21. Rb3 {[%emt 0:04:52]} Qd7 {[%emt 0:02:14]} 22. d5 {[%emt 0:04:26]} exd5 {[%emt 0:01:26]} 23. exd5 {[%emt 0:00:11]} Bb5 {[%emt 0:02:12]} 24. Rb4 $1 {[%emt 0:04:27]} Rfe8 $2 {[%emt 0:02:39]} (24... Rbe8 $16 {might work better.} 25. Be3 (25. Rh4 h6 $16) 25... Re5) 25. Kg2 {[%emt 0:01:27]} (25. Rh4 g6 $14) (25. Bg4 $18 {is the precise move to win.} Qd6 26. Rxb5 $1 {[%mdl 512]} (26. Rxa4 Bxa4 27. Qxa4 Qg6 $18) 26... Rxb5 27. Qxa4) 25... Nb6 $16 {[%emt 0:05:00]} 26. Rh4 {[%emt 0:07:34]} ({Don't play} 26. Qxc3 Be2 $14) 26... h6 {[%emt 0:01:16]} (26... f5 $16) 27. Qxc3 $18 {[%emt 0:00:53]} Be2 {[%emt 0:01:05]} (27... Na4 $142 28. Qd4 f5) 28. Bxe2 {[%emt 0:02:59]} Rxe2 {[%emt 0:00:07]} 29. Bxh6 $1 {[%emt 0:00:59]} (29. Bb2 f6 30. Qb3 Rd8 $11) 29... f6 {[%emt 0:02:29] [#]} 30. Bxg7 {[%emt 0:02:50]} (30. Qf3 $1 $18 {and White stays clearly on top.} Re5 31. Rg4) 30... Qxg7 $16 {[%emt 0:01:48]} 31. Qf3 {[%emt 0:00:32]} (31. d6 $16 cxd6 32. Rxd6 Qb7+ 33. Kh3 Rxf2 34. Rg4+ (34. Rxf6 Qg2+ 35. Kg4 Qe4+ 36. Kh3 Qg2+ 37. Kg4 Qe4+ 38. Kh3 Qg2+ $11) 34... Kf7 35. Qb3+ Nd5 36. Rxd5 (36. Qxd5+ Qxd5 37. Rxd5 Rh8+ 38. Rh4 Rxh4+ 39. Kxh4 Rxh2+ 40. Kg4 Rxa2 $14) 36... Qxb3 37. axb3) 31... Re5 $1 $14 {[%emt 0:00:20]} (31... Rxa2 $2 32. Rg4 Rd8 33. d6 Rxd6 34. Rxd6 cxd6 35. Qb3+ d5 36. Rxg7+ Kxg7 37. Qxa2 $18) 32. Rdd4 {[%emt 0:00:34]} Rd8 $2 {[%emt 0:00:46][%mdl 8192] [#]} ({Black should play} 32... Rg5 $1 $14) 33. Rhg4 $1 $18 {[%emt 0:00:20]} Rg5 {[%emt 0:00:22]} 34. h4 {[%emt 0:00:14]} Rxg4 {[%emt 0:00:41]} 35. Rxg4 {[%emt 0:00:07]} Nxd5 {[%emt 0:00:31]} 36. Rxg7+ {[%emt 0:00:31]} Kxg7 {[%emt 0:00:02]} 37. Qf5 {[%emt 0:00:57]} Ne7 {[%emt 0:00:57]} 38. Qc5 {[%emt 0:00:23]} 1-0

[Event "Reykjavik Open 2022"]
[Site "Reykjavik"]
[Date "2022.04.07"]
[Round "3.11"]
[White "Gretarsson, Hjorvar Steinn"]
[Black "Dishman, Stephen"]
[Result "1-0"]
[ECO "B10"]
[WhiteElo "2548"]
[BlackElo "2332"]
[Annotator "TA"]
[PlyCount "73"]
[EventDate "2022.04.06"]
[EventCountry "ISL"]
[SourceTitle "playchess.com"]
[Source "ChessBase"]
[SourceQuality "1"]
[TimeControl "40/5400+30:1800+30"]

{[%evp 32,73,127,128,120,106,145,151,154,145,182,166,181,179,222,216,236,235,304,304,312,304,291,282,302,246,246,245,614,609,610,562,587,562,783,775,792,377,739,650,662,367,566,558]} 1. e4 {[%emt 0:00:05]} c6 {[%emt 0:00:20]} 2. Nf3 {[%emt 0:00:21]} d5 {[%emt 0:00:18]} 3. d3 {[%emt 0:01:00]} dxe4 {[%emt 0:00:18]} 4. dxe4 {[%emt 0:00:07]} Qxd1+ {[%emt 0:00:12]} 5. Kxd1 {[%emt 0:00:07]} Nf6 {[%emt 0:00:27]} 6. Nc3 {[%emt 0:02:59]} Nbd7 {[%emt 0:05:30]} 7. a4 {[%emt 0:03:09]} e5 {[%emt 0:04:33]} 8. Nd2 {[%emt 0:07:24]} Bc5 {[%emt 0:09:02]} 9. f3 {[%emt 0:00:49]} O-O {[%emt 0:01:25]} 10. Nc4 {[%emt 0:12:40]} Re8 {[%emt 0:09:02]} 11. a5 {[%emt 0:00:51]} h6 {[%emt 0:11:20]} 12. Bd2 {[%emt 0:08:23]} Nh7 {[%emt 0:04:32]} 13. Na4 {[%emt 0:02:21]} Bf8 {[%emt 0:12:13]} 14. Be3 {[%emt 0:01:57]} Ng5 {[%emt 0:00:47]} 15. c3 {[%emt 0:01:31]} Ne6 {[%emt 0:00:58]} 16. b4 {[%emt 0:04:05]} Nc7 {[%emt 0:02:33]} 17. Kc2 {[%emt 0:06:29]} Nb5 {[%emt 0:01:18]} 18. Be2 {[%emt 0:02:51]} Nd6 {[%emt 0:04:51]} 19. Rhd1 {[%emt 0:07:22]} Nxc4 {[%emt 0:02:52]} 20. Bxc4 {[%emt 0:00:06]} Nf6 {[%emt 0:04:04]} 21. Rd2 {[%emt 0:01:17]} Be6 {[%emt 0:02:16]} 22. Nb2 {[%emt 0:01:30]} Bc8 {[%emt 0:13:58]} 23. Rad1 {[%emt 0:00:28]} Be7 {[%emt 0:00:54]} 24. Bb3 {[%emt 0:00:49]} a6 {[%emt 0:02:48]} 25. Na4 {[%emt 0:04:34]} Be6 {[%emt 0:01:45]} 26. Bxe6 {[%emt 0:00:35]} fxe6 {[%emt 0:00:04]} 27. Nb6 {[%emt 0:00:07]} Rad8 {[%emt 0:00:31]} 28. Nc4 {[%emt 0:00:17]} Rxd2+ {[%emt 0:00:27]} 29. Rxd2 {[%emt 0:00:10]} ({Don't play} 29. Nxd2 $6 Rd8 30. Bf2 Ne8 $16) 29... Rd8 $2 {[%emt 0:00:11]} (29... Kf8 30. Bb6 (30. Nxe5 Rd8 $18) 30... Rc8 31. Nxe5 Ke8) 30. Rxd8+ $18 {[%emt 0:00:12]} Bxd8 {[%emt 0:00:08]} 31. Nd6 {[%emt 0:00:31]} Be7 {[%emt 0:01:39]} 32. Nxb7 {[%emt 0:00:09]} Nd7 {[%emt 0:00:32]} 33. Kb3 {[%emt 0:00:27]} Kf7 {[%emt 0:00:15]} 34. Kc4 {[%emt 0:00:15]} (34. c4 $142) 34... h5 $2 {[%emt 0:00:59]} (34... Ke8 35. Bc5 g5 36. Bxe7 Kxe7) 35. Bc5 $18 {[%emt 0:02:30]} Bg5 {[%emt 0:02:24]} 36. Nd6+ {[%emt 0:00:46]} Kg6 {[%emt 0:00:16]} (36... Ke7 $142 37. Nb7+ Ke8) 37. Nc8 {[%emt 0:00:57]} 1-0

[Event "Reykjavik Open 2022"]
[Site "Reykjavik"]
[Date "2022.04.07"]
[Round "3.12"]
[White "Yoo, Christopher Woojin"]
[Black "Brunello, Marina"]
[Result "1-0"]
[ECO "B90"]
[WhiteElo "2514"]
[BlackElo "2352"]
[Annotator "TA"]
[PlyCount "69"]
[EventDate "2022.04.06"]
[EventCountry "ISL"]
[SourceTitle "playchess.com"]
[Source "ChessBase"]
[SourceQuality "1"]
[TimeControl "40/5400+30:1800+30"]

{[%evp 29,69,46,111,116,123,123,195,191,189,189,189,183,296,271,271,291,371,347,381,363,439,425,499,501,504,503,481,477,529,529,529,529,529,529,522,508,737,745,707,698,1239,1173]} 1. e4 {[%emt 0:00:05]} c5 {[%emt 0:00:10]} 2. Nf3 {[%emt 0:00:08]} d6 {[%emt 0:00:07]} 3. d4 {[%emt 0:00:07]} cxd4 {[%emt 0:00:07]} 4. Nxd4 {[%emt 0:00:06]} Nf6 {[%emt 0:00:04]} 5. Nc3 {[%emt 0:00:07]} a6 {[%emt 0:00:02]} 6. a3 {[%emt 0:00:44]} e5 {[%emt 0:02:38]} 7. Nf5 {[%emt 0:00:10]} d5 {[%emt 0:01:30]} 8. Bg5 {[%emt 0:00:16]} d4 {[%emt 0:01:29]} 9. Bxf6 {[%emt 0:00:14]} gxf6 {[%emt 0:17:39]} 10. Nb1 {[%emt 0:00:07]} Qb6 {[%emt 0:03:49]} 11. Nd2 {[%emt 0:00:42]} Bxf5 {[%emt 0:03:22]} 12. exf5 {[%emt 0:01:28]} h5 {[%emt 0:03:27]} 13. Be2 {[%emt 0:09:34]} h4 {[%emt 0:00:10]} 14. O-O {[%emt 0:02:15]} Nc6 {[%emt 0:06:24]} 15. Bf3 {[%emt 0:05:48]} Bh6 {[%emt 0:05:45]} (15... Qxb2 $2 16. Rb1 Qa2 17. c3 $18) (15... h3 $14) 16. Ne4 $1 $16 {[%emt 0:02:00]} Ne7 {[%emt 0:01:06] [#]} 17. c4 $1 {[%emt 0:01:52]} Rc8 {[%emt 0:06:24]} (17... Kf8 $16 {keeps fighting.}) 18. c5 $18 {[%emt 0:07:03]} Rxc5 {[%emt 0:00:05]} 19. Nxc5 {[%emt 0:00:04]} Qxc5 {[%emt 0:00:04]} 20. Bxb7 {[%emt 0:00:13]} Nxf5 {[%emt 0:03:15] [#]} (20... Kf8 $142 21. Qh5 (21. Bxa6 Qc6 $16) 21... Kg7 22. Qxh4 (22. Bxa6 Bg5 $18) 22... Bg5) 21. Qf3 $1 $18 {[%emt 0:03:28]} ({Not} 21. Bxa6 Qc6 $16) 21... Bf4 {[%emt 0:00:13]} 22. Bxa6 {[%emt 0:00:36]} Kf8 {[%emt 0:02:50]} 23. Bd3 {[%emt 0:03:00]} Ne7 {[%emt 0:01:05]} 24. a4 {[%emt 0:07:38]} f5 {[%emt 0:05:51]} 25. a5 {[%emt 0:02:31]} Qd6 {[%emt 0:00:04]} 26. a6 {[%emt 0:01:29]} e4 {[%emt 0:02:50]} 27. Bxe4 {[%emt 0:00:52]} fxe4 {[%emt 0:00:04]} 28. Qxe4 {[%emt 0:00:05]} Bxh2+ {[%emt 0:10:55]} 29. Kh1 {[%emt 0:00:10]} Ng6 {[%emt 0:00:11]} 30. a7 {[%emt 0:00:53]} Kg7 {[%emt 0:00:09]} 31. a8=Q {[%emt 0:00:36]} Rxa8 {[%emt 0:00:03]} 32. Rxa8 {[%emt 0:00:08]} d3 {[%emt 0:00:02]} 33. Ra3 {[%emt 0:00:47]} d2 {[%emt 0:00:11]} 34. Rd3 {[%emt 0:00:13]} Qa6 {[%emt 0:00:03]} 35. Kxh2 {[%emt 0:00:15]} 1-0

[Event "Reykjavik Open 2022"]
[Site "Reykjavik"]
[Date "2022.04.07"]
[Round "3.13"]
[White "Peng, Li Min"]
[Black "Cummings, David H."]
[Result "1-0"]
[ECO "E32"]
[WhiteElo "2498"]
[BlackElo "2327"]
[Annotator "TA"]
[PlyCount "113"]
[EventDate "2022.04.06"]
[EventCountry "ISL"]
[SourceTitle "playchess.com"]
[Source "ChessBase"]
[SourceQuality "1"]
[TimeControl "40/5400+30:1800+30"]

{[%evp 75,113,159,223,224,246,246,254,108,108,0,246,239,237,105,550,550,506,230,284,262,284,277,486,454,432,356,484,428,704,681,2524,1987,2165,2136,29966,29971,29980,29981,29980,29980]} 1. d4 {[%emt 0:06:59]} Nf6 {[%emt 0:00:15]} 2. c4 {[%emt 0:00:14]} e6 {[%emt 0:00:10]} 3. Nc3 {[%emt 0:00:06]} Bb4 {[%emt 0:00:09]} 4. Qc2 {[%emt 0:00:45]} O-O {[%emt 0:00:34]} 5. e4 {[%emt 0:00:35]} d5 {[%emt 0:00:51]} 6. e5 {[%emt 0:00:07]} Ne4 {[%emt 0:00:11]} 7. Bd3 {[%emt 0:00:12]} c5 {[%emt 0:00:40]} 8. Nf3 {[%emt 0:00:05]} cxd4 {[%emt 0:00:46]} 9. Nxd4 {[%emt 0:00:05]} Nd7 {[%emt 0:00:25]} 10. Bf4 {[%emt 0:00:04]} Qh4 {[%emt 0:02:47]} 11. g3 {[%emt 0:00:05]} Qh5 {[%emt 0:00:44]} 12. O-O {[%emt 0:03:41]} g5 {[%emt 0:02:03]} 13. cxd5 {[%emt 0:00:04]} Bxc3 {[%emt 0:00:17]} 14. bxc3 {[%emt 0:00:05]} exd5 {[%emt 0:01:28]} 15. Be3 {[%emt 0:00:47]} Nxe5 {[%emt 0:03:23]} 16. f3 {[%emt 0:00:08]} Nc5 {[%emt 0:02:16]} 17. Be2 {[%emt 0:00:02]} Qg6 {[%emt 0:11:44]} 18. Qxg6+ {[%emt 0:00:17]} hxg6 {[%emt 0:02:16]} 19. Bxg5 {[%emt 0:00:12]} Ne6 {[%emt 0:02:36]} 20. Nxe6 {[%emt 0:05:11]} Bxe6 {[%emt 0:01:01]} 21. Bf6 {[%emt 0:00:09]} Nd7 {[%emt 0:02:51]} 22. Bd4 {[%emt 0:00:03]} f6 {[%emt 0:02:00]} 23. Rfe1 {[%emt 0:07:09]} Kf7 {[%emt 0:04:38]} 24. h4 {[%emt 0:01:14]} Ne5 {[%emt 0:04:52]} 25. Kf2 {[%emt 0:07:12]} Nc6 {[%emt 0:02:06]} 26. Be3 {[%emt 0:00:34]} Rfd8 {[%emt 0:01:26]} 27. Red1 {[%emt 0:00:20]} Rac8 {[%emt 0:02:02]} 28. g4 {[%emt 0:01:11]} b6 {[%emt 0:01:18]} 29. Rac1 {[%emt 0:02:19]} Rh8 {[%emt 0:04:17]} 30. Rh1 {[%emt 0:00:49]} Ne5 {[%emt 0:00:18]} 31. g5 {[%emt 0:01:05]} Bf5 {[%emt 0:04:34]} 32. gxf6 {[%emt 0:07:51]} Nd3+ {[%emt 0:10:25]} 33. Bxd3 {[%emt 0:00:08]} Bxd3 {[%emt 0:00:05]} 34. Rhd1 {[%emt 0:02:31]} Bf5 {[%emt 0:08:01]} 35. Kg3 {[%emt 0:03:55]} Rhe8 {[%emt 0:01:24]} 36. Bd4 {[%emt 0:00:49]} Re2 {[%emt 0:03:22]} 37. Re1 {[%emt 0:00:12]} Rxe1 {[%emt 0:01:18]} 38. Rxe1 {[%emt 0:00:02]} Be6 {[%emt 0:00:19] [#]} (38... Re8 $16 39. Rxe8 Kxe8) 39. a4 $1 $18 {[%emt 0:00:50]} Rc7 {[%emt 0:04:37]} 40. Kf4 {[%emt 0:00:00]} Rc6 {[%emt 0:00:00]} 41. Ke5 {[%emt 0:13:43]} (41. Rb1 $18 {has better winning chances.}) 41... Bg4 $16 {[%emt 0:14:49]} 42. Kf4 {[%emt 0:00:29]} ({Reject} 42. fxg4 $6 Re6+ 43. Kxd5 Rxe1 $11) ({Don't blunder} 42. Kxd5 $2 Bxf3+ 43. Ke5 Re6+ 44. Kf4 Rxe1 $19) (42. Ra1 $16 Bxf3 43. a5 Rxf6 44. axb6 Rf5+ 45. Kd6 axb6 46. Ra7+ Kg8 47. Rg7+ (47. Bxb6 Rf6+ 48. Kc5 Rf4 $11) 47... Kf8 48. Rxg6) 42... Be6 $18 {[%emt 0:00:38]} 43. Rg1 {[%emt 0:05:32]} a6 {[%emt 0:04:34]} 44. Ke5 {[%emt 0:08:03]} (44. Rg5 $18) 44... Bd7 $2 {[%emt 0:06:00][%mdl 8192]} (44... Bc8 $16) 45. Kxd5 $18 {[%emt 0:04:25]} Re6 {[%emt 0:02:11]} 46. f4 {[%emt 0:00:40]} (46. h5 $142 Bc6+ 47. Kc4 gxh5 48. Rg7+ Ke8 49. a5 bxa5 50. f7+ Kf8 51. Bc5+ Re7 52. Rh7) 46... Bc6+ $18 {[%emt 0:03:35]} 47. Kc4 {[%emt 0:00:02]} Be4 {[%emt 0:00:16]} 48. Be5 {[%emt 0:00:45]} Bc2 $2 {[%emt 0:02:49]} (48... Re8 {keeps fighting.} 49. Rd1 Rc8+ 50. Kb4 Ke8) 49. h5 $18 {[%emt 0:04:40]} Re8 {[%emt 0:00:37]} 50. Kd5 {[%emt 0:05:25]} Rd8+ {[%emt 0:03:09]} 51. Kc6 {[%emt 0:00:05]} Bxa4+ {[%emt 0:00:11]} (51... gxh5 $142 52. Rg7+ (52. Kxb6 Rg8 $16) 52... Ke6 53. Re7+ Kf5 54. Kxb6 Rf8) 52. Kxb6 $18 {[%emt 0:00:09]} Bc2 {[%emt 0:03:54]} 53. hxg6+ {[%emt 0:00:41]} Bxg6 {[%emt 0:00:06]} 54. c4 {[%emt 0:00:06]} Rc8 {[%emt 0:03:48]} 55. f5 {[%emt 0:03:42]} Bxf5 {[%emt 0:00:06]} 56. Rg7+ {[%emt 0:00:03]} Ke8 {[%emt 0:00:28]} 57. Bd6 {[%emt 0:00:02]} 1-0